[Event "Betsys MČR v online bleskovém šachu 2021"]
[Site "Chess.com"]
[Date "2021.04.17"]
[Round "11"]
[White "Dvacetsekund"]
[Black "vasekpaulus"]
[Result "1-0"]
[WhiteElo "2200"]
[BlackElo "2050"]
[TimeControl "180+1"]
[EndTime "10:50:09 PDT"]
[Termination "Uživatel Dvacetsekund zvítězil po vzdání soupeře"]

1. e4 {[%clk 0:03:00.9]} 1... c5 {[%clk 0:02:55.3]} 2. Nf3 {[%clk 0:03:01.1]}
2... Nc6 {[%clk 0:02:53.7]} 3. Nc3 {[%clk 0:02:59.6]} 3... e5 {[%clk 0:02:52.4]}
4. Bc4 {[%clk 0:02:59.1]} 4... Be7 {[%clk 0:02:51.7]} 5. d3 {[%clk 0:02:59.1]}
5... d6 {[%clk 0:02:52]} 6. Nd2 {[%clk 0:02:57]} 6... Nf6 {[%clk 0:02:50.7]} 7.
Nf1 {[%clk 0:02:56.3]} 7... O-O {[%clk 0:02:50.2]} 8. Ne3 {[%clk 0:02:54.6]}
8... Nd7 {[%clk 0:02:49.2]} 9. a4 {[%clk 0:02:52]} 9... Nb6 {[%clk 0:02:48.5]}
10. O-O {[%clk 0:02:51.9]} 10... Nxc4 {[%clk 0:02:42.9]} 11. dxc4 {[%clk
0:02:51.8]} 11... Be6 {[%clk 0:02:39.6]} 12. Ncd5 {[%clk 0:02:49.9]} 12... Bg5
{[%clk 0:02:33.5]} 13. c3 {[%clk 0:02:34.2]} 13... Bxe3 {[%clk 0:02:30.2]} 14.
Bxe3 {[%clk 0:02:33.6]} 14... Bxd5 {[%clk 0:02:29.6]} 15. cxd5 {[%clk
0:02:32.5]} 15... Ne7 {[%clk 0:02:28.8]} 16. f4 {[%clk 0:02:31]} 16... f6 {[%clk
0:02:23.2]} 17. fxe5 {[%clk 0:02:27.6]} 17... fxe5 {[%clk 0:02:22.3]} 18. Qg4
{[%clk 0:02:26.7]} 18... Ng6 {[%clk 0:02:11.7]} 19. Bg5 {[%clk 0:02:17.6]} 19...
Qb6 {[%clk 0:01:49.3]} 20. Be7 {[%clk 0:01:32.3]} 20... c4+ {[%clk 0:01:41.1]}
21. Kh1 {[%clk 0:01:32]} 21... Rxf1+ {[%clk 0:00:53.6]} 22. Rxf1 {[%clk
0:01:32.9]} 22... Qxb2 {[%clk 0:00:46.5]} 23. Bxd6 {[%clk 0:00:51.4]} 23... Qb6
{[%clk 0:00:22.1]} 24. Qe6+ {[%clk 0:00:31.8]} 24... Kh8 {[%clk 0:00:21.6]} 25.
h4 {[%clk 0:00:30.2]} 25... Rd8 {[%clk 0:00:19.9]} 26. h5 {[%clk 0:00:16.6]}
26... Qxd6 {[%clk 0:00:14.2]} 27. Qxd6 {[%clk 0:00:07.3]} 27... Rxd6 {[%clk
0:00:13.5]} 28. hxg6 {[%clk 0:00:08]} 28... hxg6 {[%clk 0:00:12]} 29. Rf8+
{[%clk 0:00:08.7]} 29... Kh7 {[%clk 0:00:11.7]} 30. Re8 {[%clk 0:00:08.9]} 30...
Ra6 {[%clk 0:00:08.9]} 31. Rxe5 {[%clk 0:00:08.1]} 31... Rxa4 {[%clk 0:00:09.4]}
32. d6 {[%clk 0:00:08.7]} 32... Ra1+ {[%clk 0:00:07.4]} 33. Kh2 {[%clk
0:00:08.4]} 33... Rd1 {[%clk 0:00:07.7]} 34. Rd5 {[%clk 0:00:08.8]} 34... Re1
{[%clk 0:00:02]} 35. d7 {[%clk 0:00:08.6]} 35... Rxe4 {[%clk 0:00:02.6]} 36.
d8=Q {[%clk 0:00:09.1]} 1-0

[Event "Betsys MČR v online bleskovém šachu 2021"]
[Site "Chess.com"]
[Date "2021.04.17"]
[Round "11"]
[White "FormerProdigy"]
[Black "MartinCerveny"]
[Result "1-0"]
[WhiteElo "2871"]
[BlackElo "2669"]
[TimeControl "180+1"]
[EndTime "10:50:10 PDT"]
[Termination "Uživatel FormerProdigy zvítězil po vzdání soupeře"]

1. e4 {[%clk 0:03:00.9]} 1... c5 {[%clk 0:02:59.7]} 2. Nf3 {[%clk 0:03:01]} 2...
d6 {[%clk 0:02:59.9]} 3. Bb5+ {[%clk 0:02:59.7]} 3... Bd7 {[%clk 0:02:59.5]} 4.
Bxd7+ {[%clk 0:02:58.9]} 4... Qxd7 {[%clk 0:03:00.4]} 5. c4 {[%clk 0:02:58.8]}
5... Nf6 {[%clk 0:03:00.5]} 6. Nc3 {[%clk 0:02:58.9]} 6... Nc6 {[%clk
0:03:00.2]} 7. d4 {[%clk 0:02:58.4]} 7... cxd4 {[%clk 0:03:00.5]} 8. Nxd4 {[%clk
0:02:59.3]} 8... Qg4 {[%clk 0:03:00.3]} 9. Qxg4 {[%clk 0:02:57]} 9... Nxg4
{[%clk 0:03:00.1]} 10. Nxc6 {[%clk 0:02:55.9]} 10... bxc6 {[%clk 0:03:01]} 11.
Bf4 {[%clk 0:02:45.5]} 11... g5 {[%clk 0:02:54]} 12. Bg3 {[%clk 0:02:37.1]}
12... Bg7 {[%clk 0:02:49]} 13. Ke2 {[%clk 0:02:30.8]} 13... Rb8 {[%clk
0:02:36.2]} 14. Rab1 {[%clk 0:02:29.7]} 14... Bxc3 {[%clk 0:02:26.7]} 15. bxc3
{[%clk 0:02:30.6]} 15... Kd7 {[%clk 0:02:24.4]} 16. c5 {[%clk 0:02:08.3]} 16...
Ke6 {[%clk 0:02:12.7]} 17. cxd6 {[%clk 0:01:58]} 17... exd6 {[%clk 0:02:11.7]}
18. Rb3 {[%clk 0:01:55.4]} 18... Rxb3 {[%clk 0:02:09.1]} 19. axb3 {[%clk
0:01:56.3]} 19... Rb8 {[%clk 0:02:08.8]} 20. b4 {[%clk 0:01:55.1]} 20... a5
{[%clk 0:02:06.4]} 21. bxa5 {[%clk 0:01:43.6]} 21... Rb2+ {[%clk 0:02:05.5]} 22.
Kf3 {[%clk 0:01:43.8]} 22... h5 {[%clk 0:01:28.1]} 23. Ra1 {[%clk 0:01:35.2]}
23... Rb7 {[%clk 0:01:26.7]} 24. a6 {[%clk 0:01:33.2]} 24... Ra7 {[%clk
0:01:26.9]} 25. Ra5 {[%clk 0:01:28.3]} 25... f6 {[%clk 0:01:07.9]} 26. h4 {[%clk
0:01:18.6]} 26... gxh4 {[%clk 0:01:06]} 27. Bxh4 {[%clk 0:01:19.5]} 27... Ne5+
{[%clk 0:01:06]} 28. Ke2 {[%clk 0:01:18.6]} 28... c5 {[%clk 0:01:03.6]} 29. Ra1
{[%clk 0:01:02.5]} 29... Nc6 {[%clk 0:00:55.2]} 30. Bg3 {[%clk 0:01:02.4]} 30...
Nb8 {[%clk 0:00:42.1]} 31. Rb1 {[%clk 0:01:02.1]} 31... Nd7 {[%clk 0:00:37.5]}
32. Ra1 {[%clk 0:01:01.7]} 32... Nb8 {[%clk 0:00:37.2]} 33. Rh1 {[%clk
0:01:01.4]} 33... Rh7 {[%clk 0:00:35.6]} 34. Rxh5 {[%clk 0:00:59.6]} 34... Ra7
{[%clk 0:00:32]} 35. Rh8 {[%clk 0:00:42.3]} 35... Nc6 {[%clk 0:00:28.8]} 36. f4
{[%clk 0:00:35.9]} 36... Rxa6 {[%clk 0:00:28]} 37. f5+ {[%clk 0:00:35.9]} 37...
Kd7 {[%clk 0:00:25.9]} 38. Rh7+ {[%clk 0:00:35.6]} 38... Ne7 {[%clk 0:00:19.8]}
39. Bh4 {[%clk 0:00:35.4]} 39... d5 {[%clk 0:00:19.6]} 40. e5 {[%clk 0:00:34.9]}
40... Ke8 {[%clk 0:00:18.4]} 41. g4 {[%clk 0:00:25]} 41... Ng8 {[%clk
0:00:15.7]} 42. Bxf6 {[%clk 0:00:19.2]} 42... Nxf6 {[%clk 0:00:14.2]} 43. exf6
{[%clk 0:00:20.1]} 43... Ra4 {[%clk 0:00:13]} 44. g5 {[%clk 0:00:19.6]} 44...
Rf4 {[%clk 0:00:12.8]} 45. g6 {[%clk 0:00:19.4]} 45... Rxf5 {[%clk 0:00:12.9]}
46. Rh8+ {[%clk 0:00:19.6]} 46... Kd7 {[%clk 0:00:12.2]} 47. g7 {[%clk
0:00:20.5]} 1-0

[Event "Betsys MČR v online bleskovém šachu 2021"]
[Site "Chess.com"]
[Date "2021.04.17"]
[Round "11"]
[White "Honzik1950"]
[Black "Asmodai5"]
[Result "0-1"]
[WhiteElo "1493"]
[BlackElo "1374"]
[TimeControl "180+1"]
[EndTime "10:50:11 PDT"]
[Termination "Uživatel Asmodai5 zvítězil na čas"]

1. e4 {[%clk 0:03:00.9]} 1... e5 {[%clk 0:02:59.6]} 2. Nf3 {[%clk 0:03:00.9]}
2... Nc6 {[%clk 0:02:59.3]} 3. Bb5 {[%clk 0:03:00.9]} 3... Bc5 {[%clk
0:02:55.8]} 4. O-O {[%clk 0:03:00.2]} 4... Nf6 {[%clk 0:02:43.3]} 5. d3 {[%clk
0:03:00]} 5... d6 {[%clk 0:02:39.1]} 6. c3 {[%clk 0:02:56.9]} 6... O-O {[%clk
0:02:36.6]} 7. Bg5 {[%clk 0:02:55.9]} 7... Bg4 {[%clk 0:02:32]} 8. Nbd2 {[%clk
0:02:53.2]} 8... a6 {[%clk 0:02:19.5]} 9. Ba4 {[%clk 0:02:52.5]} 9... b5 {[%clk
0:02:18.9]} 10. Bc2 {[%clk 0:02:52.5]} 10... Qe7 {[%clk 0:01:57.7]} 11. Re1
{[%clk 0:02:47.7]} 11... Nd8 {[%clk 0:01:56.7]} 12. Nf1 {[%clk 0:02:47.2]} 12...
Ne6 {[%clk 0:01:56.3]} 13. Be3 {[%clk 0:02:36.7]} 13... Rad8 {[%clk 0:01:49.3]}
14. h3 {[%clk 0:02:33.4]} 14... Bxf3 {[%clk 0:01:48.7]} 15. Qxf3 {[%clk
0:02:32.3]} 15... c6 {[%clk 0:01:47.9]} 16. Rad1 {[%clk 0:02:22.7]} 16... d5
{[%clk 0:01:47.4]} 17. exd5 {[%clk 0:02:15.3]} 17... cxd5 {[%clk 0:01:44.9]} 18.
Bxc5 {[%clk 0:02:11.1]} 18... Nxc5 {[%clk 0:01:43.7]} 19. Ng3 {[%clk 0:01:56.3]}
19... e4 {[%clk 0:01:37.3]} 20. dxe4 {[%clk 0:01:52.8]} 20... dxe4 {[%clk
0:01:36.3]} 21. Qe2 {[%clk 0:01:11.2]} 21... Rxd1 {[%clk 0:01:17.8]} 22. Rxd1
{[%clk 0:01:10.2]} 22... Re8 {[%clk 0:01:17.2]} 23. Rd4 {[%clk 0:00:52.9]} 23...
e3 {[%clk 0:00:46.9]} 24. fxe3 {[%clk 0:00:43]} 24... Qe5 {[%clk 0:00:23.6]} 25.
Kf2 {[%clk 0:00:21]} 25... h6 {[%clk 0:00:19.7]} 26. b4 {[%clk 0:00:17.4]} 26...
Ncd7 {[%clk 0:00:18.3]} 27. Ne4 {[%clk 0:00:10]} 27... Nxe4+ {[%clk 0:00:15.3]}
28. Rxe4 {[%clk 0:00:09]} 28... Qf5+ {[%clk 0:00:13.7]} 29. Qf3 {[%clk
0:00:05.3]} 29... Qxf3+ {[%clk 0:00:12]} 30. gxf3 {[%clk 0:00:03.5]} 30... Rxe4
{[%clk 0:00:09.1]} 31. Bxe4 {[%clk 0:00:03.6]} 31... Nf6 {[%clk 0:00:08.5]} 32.
Bb7 {[%clk 0:00:02.7]} 32... Nh5 {[%clk 0:00:07.6]} 33. Bxa6 {[%clk 0:00:01.7]}
33... f6 {[%clk 0:00:07.7]} 34. Bxb5 {[%clk 0:00:01.8]} 34... g5 {[%clk
0:00:08]} 35. a4 {[%clk 0:00:01.6]} 35... Ng7 {[%clk 0:00:06.2]} 36. a5 {[%clk
0:00:01.7]} 36... Ne6 {[%clk 0:00:05.8]} 37. a6 {[%clk 0:00:01.5]} 37... Nc7
{[%clk 0:00:05.9]} 0-1

[Event "Betsys MČR v online bleskovém šachu 2021"]
[Site "Chess.com"]
[Date "2021.04.17"]
[Round "11"]
[White "Molefancier"]
[Black "vaclavbelaska"]
[Result "0-1"]
[WhiteElo "1070"]
[BlackElo "1381"]
[TimeControl "180+1"]
[EndTime "10:50:11 PDT"]
[Termination "Uživatel vaclavbelaska zvítězil na čas"]

1. e4 {[%clk 0:03:00.9]} 1... c5 {[%clk 0:02:48.9]} 2. Nf3 {[%clk 0:02:59.8]}
2... d6 {[%clk 0:02:47.7]} 3. d4 {[%clk 0:02:58.2]} 3... cxd4 {[%clk 0:02:46]}
4. Nxd4 {[%clk 0:02:54.4]} 4... Nf6 {[%clk 0:02:45.3]} 5. Nc3 {[%clk 0:02:52.9]}
5... g6 {[%clk 0:02:44.1]} 6. Bd3 {[%clk 0:02:49.2]} 6... Bg7 {[%clk 0:02:42.6]}
7. Be3 {[%clk 0:02:44.2]} 7... O-O {[%clk 0:02:41.3]} 8. O-O {[%clk 0:02:42.9]}
8... Qc7 {[%clk 0:02:38.2]} 9. f4 {[%clk 0:02:38.2]} 9... a6 {[%clk 0:02:36.1]}
10. Nf3 {[%clk 0:02:23.7]} 10... Nc6 {[%clk 0:02:31.3]} 11. Nd5 {[%clk
0:02:01.5]} 11... Nxd5 {[%clk 0:02:29.1]} 12. exd5 {[%clk 0:02:01.9]} 12... Nb4
{[%clk 0:02:25.8]} 13. Be4 {[%clk 0:01:55.9]} 13... Bxb2 {[%clk 0:02:09.3]} 14.
Rb1 {[%clk 0:01:51.8]} 14... Bc3 {[%clk 0:02:08.6]} 15. Bd4 {[%clk 0:01:33.5]}
15... Bxd4+ {[%clk 0:01:56.8]} 16. Qxd4 {[%clk 0:01:33.3]} 16... Nxc2 {[%clk
0:01:54.6]} 17. Bxc2 {[%clk 0:01:31.8]} 17... Qxc2 {[%clk 0:01:52.9]} 18. f5
{[%clk 0:01:14.4]} 18... Bxf5 {[%clk 0:01:50.7]} 19. Rbc1 {[%clk 0:01:05.9]}
19... Qe4 {[%clk 0:01:47.3]} 20. Qf2 {[%clk 0:01:00.8]} 20... Rac8 {[%clk
0:01:38.6]} 21. Ng5 {[%clk 0:00:58.9]} 21... Qa4 {[%clk 0:01:24.3]} 22. Rcd1
{[%clk 0:00:49.3]} 22... Rc2 {[%clk 0:01:19]} 23. Qf4 {[%clk 0:00:40.5]} 23...
Qxa2 {[%clk 0:01:09.6]} 24. Qh4 {[%clk 0:00:34.4]} 24... Rxg2+ {[%clk 0:01:07]}
25. Kh1 {[%clk 0:00:34.2]} 25... h5 {[%clk 0:01:05.1]} 26. Rg1 {[%clk
0:00:27.1]} 26... Rxg1+ {[%clk 0:00:45.9]} 27. Rxg1 {[%clk 0:00:26.6]} 27...
Qxd5+ {[%clk 0:00:34.9]} 28. Rg2 {[%clk 0:00:19.3]} 28... Bg4 {[%clk 0:00:18.6]}
29. h3 {[%clk 0:00:14.8]} 29... Qd1+ {[%clk 0:00:14.9]} 30. Kh2 {[%clk
0:00:14.6]} 30... Bf3 {[%clk 0:00:12.5]} 31. Nxf3 {[%clk 0:00:12.4]} 31... Qxf3
{[%clk 0:00:12]} 32. Qa4 {[%clk 0:00:08.9]} 32... Qc6 {[%clk 0:00:10.5]} 33. Qh4
{[%clk 0:00:07.2]} 33... Rc8 {[%clk 0:00:08.5]} 34. Qe1 {[%clk 0:00:03.3]} 34...
Qd7 {[%clk 0:00:04.5]} 35. Re2 {[%clk 0:00:01.8]} 35... Qf5 {[%clk 0:00:03.7]}
0-1

[Event "Betsys MČR v online bleskovém šachu 2021"]
[Site "Chess.com"]
[Date "2021.04.17"]
[Round "11"]
[White "kaprasov"]
[Black "FrantisekP"]
[Result "1-0"]
[WhiteElo "1871"]
[BlackElo "1643"]
[TimeControl "180+1"]
[EndTime "10:50:12 PDT"]
[Termination "Uživatel kaprasov zvítězil po vzdání soupeře"]

1. d4 {[%clk 0:02:54.7]} 1... Nf6 {[%clk 0:02:59.2]} 2. Bf4 {[%clk 0:02:54.1]}
2... d6 {[%clk 0:02:56.3]} 3. Nc3 {[%clk 0:02:52.2]} 3... g6 {[%clk 0:02:56.1]}
4. e4 {[%clk 0:02:52.2]} 4... Bg7 {[%clk 0:02:51.2]} 5. Qd2 {[%clk 0:02:50.1]}
5... Nbd7 {[%clk 0:02:46.6]} 6. O-O-O {[%clk 0:02:48.6]} 6... O-O {[%clk
0:02:46.5]} 7. Bh6 {[%clk 0:02:47.7]} 7... e5 {[%clk 0:02:44.9]} 8. Nf3 {[%clk
0:02:35.7]} 8... exd4 {[%clk 0:02:29.1]} 9. Nxd4 {[%clk 0:02:36.6]} 9... Re8
{[%clk 0:02:25.7]} 10. f3 {[%clk 0:02:33.6]} 10... Ne5 {[%clk 0:02:19.3]} 11. h4
{[%clk 0:02:29.3]} 11... Bxh6 {[%clk 0:02:01.4]} 12. Qxh6 {[%clk 0:02:26.6]}
12... Be6 {[%clk 0:01:53.2]} 13. Be2 {[%clk 0:02:18.5]} 13... Bc4 {[%clk
0:01:38.6]} 14. Bxc4 {[%clk 0:02:02.9]} 14... Nxc4 {[%clk 0:01:39.5]} 15. h5
{[%clk 0:02:03]} 15... Re7 {[%clk 0:01:24.1]} 16. hxg6 {[%clk 0:02:00.5]} 16...
fxg6 {[%clk 0:01:23.6]} 17. g4 {[%clk 0:02:00.6]} 17... Qf8 {[%clk 0:01:16]} 18.
Qg5 {[%clk 0:01:52.2]} 18... Kf7 {[%clk 0:00:58.1]} 19. Nd5 {[%clk 0:01:41.6]}
19... Re5 {[%clk 0:00:53.5]} 20. Qxf6+ {[%clk 0:01:28.4]} 20... Ke8 {[%clk
0:00:45.5]} 21. Nxc7+ {[%clk 0:01:18.7]} 21... Kd7 {[%clk 0:00:41.3]} 22. Qxf8
{[%clk 0:00:49.7]} 22... Rxf8 {[%clk 0:00:42.2]} 23. Ncb5 {[%clk 0:00:45.1]}
23... Rxb5 {[%clk 0:00:28.4]} 24. Nxb5 {[%clk 0:00:42.8]} 24... Rxf3 {[%clk
0:00:20.4]} 25. Nxd6 {[%clk 0:00:38.1]} 25... Ne3 {[%clk 0:00:19.1]} 26. Rd3
{[%clk 0:00:28.5]} 26... Ke6 {[%clk 0:00:15.2]} 27. Re1 {[%clk 0:00:22.4]} 27...
Nxg4 {[%clk 0:00:12.7]} 28. Rxf3 {[%clk 0:00:21.6]} 28... h5 {[%clk 0:00:13.2]}
29. e5 {[%clk 0:00:20.9]} 29... h4 {[%clk 0:00:13.3]} 30. Rf4 {[%clk 0:00:19.9]}
30... g5 {[%clk 0:00:13.4]} 31. Rxg4 {[%clk 0:00:20]} 31... a5 {[%clk
0:00:11.8]} 32. Rxg5 {[%clk 0:00:20.3]} 32... a4 {[%clk 0:00:11.4]} 33. Rh5
{[%clk 0:00:20.8]} 33... h3 {[%clk 0:00:11.6]} 34. Rxh3 {[%clk 0:00:20.9]} 34...
a3 {[%clk 0:00:12.5]} 35. Rh6+ {[%clk 0:00:20.9]} 35... Kd5 {[%clk 0:00:12.1]}
36. c4+ {[%clk 0:00:21.1]} 36... Kc5 {[%clk 0:00:10.9]} 37. b4+ {[%clk 0:00:20]}
37... Kd4 {[%clk 0:00:10.5]} 38. Nxb7 {[%clk 0:00:19.4]} 38... Kc3 {[%clk
0:00:09.7]} 39. Re3+ {[%clk 0:00:19.2]} 39... Kxb4 {[%clk 0:00:10]} 40. c5
{[%clk 0:00:18.4]} 40... Kb5 {[%clk 0:00:09.7]} 41. c6 {[%clk 0:00:18.8]} 41...
Kb6 {[%clk 0:00:09.9]} 42. Rc3 {[%clk 0:00:17.4]} 42... Kc7 {[%clk 0:00:10.8]}
43. Rh7+ {[%clk 0:00:17.3]} 43... Kc8 {[%clk 0:00:10.7]} 44. c7 {[%clk
0:00:17.8]} 44... Kxb7 {[%clk 0:00:08.8]} 45. c8=Q+ {[%clk 0:00:17.6]} 45... Kb6
{[%clk 0:00:09.2]} 46. Rb7+ {[%clk 0:00:17]} 1-0

[Event "Betsys MČR v online bleskovém šachu 2021"]
[Site "Chess.com"]
[Date "2021.04.17"]
[Round "11"]
[White "HCMotorCB"]
[Black "HonzaVykouk"]
[Result "0-1"]
[WhiteElo "2388"]
[BlackElo "2680"]
[TimeControl "180+1"]
[EndTime "10:50:13 PDT"]
[Termination "Uživatel HonzaVykouk zvítězil po vzdání soupeře"]

1. c3 {[%clk 0:03:00.9]} 1... Nf6 {[%clk 0:02:57.9]} 2. d4 {[%clk 0:03:00.1]}
2... g6 {[%clk 0:02:58.1]} 3. Bg5 {[%clk 0:02:59.3]} 3... Bg7 {[%clk 0:02:58.2]}
4. Nd2 {[%clk 0:02:59.4]} 4... d5 {[%clk 0:02:56.3]} 5. e3 {[%clk 0:02:59.1]}
5... O-O {[%clk 0:02:56.5]} 6. Bd3 {[%clk 0:02:58.3]} 6... c5 {[%clk 0:02:55.7]}
7. f4 {[%clk 0:02:57.1]} 7... Nc6 {[%clk 0:02:54.6]} 8. Ngf3 {[%clk 0:02:56.9]}
8... b6 {[%clk 0:02:54.3]} 9. O-O {[%clk 0:02:56.3]} 9... Qc7 {[%clk 0:02:53.8]}
10. Ne5 {[%clk 0:02:55.4]} 10... Bb7 {[%clk 0:02:52.8]} 11. Ndf3 {[%clk
0:02:53.8]} 11... Ne4 {[%clk 0:02:43.7]} 12. Nxc6 {[%clk 0:02:49.7]} 12... Bxc6
{[%clk 0:02:43.3]} 13. Bh4 {[%clk 0:02:43.1]} 13... f6 {[%clk 0:02:37.7]} 14.
Nd2 {[%clk 0:02:28.2]} 14... Nd6 {[%clk 0:02:36.5]} 15. Bg3 {[%clk 0:02:22.9]}
15... Rae8 {[%clk 0:02:34.6]} 16. Qc2 {[%clk 0:02:14.3]} 16... Bd7 {[%clk
0:02:15.6]} 17. Rae1 {[%clk 0:02:07.7]} 17... Bf5 {[%clk 0:02:13.7]} 18. e4
{[%clk 0:01:44.1]} 18... dxe4 {[%clk 0:02:10.9]} 19. Nxe4 {[%clk 0:01:42.9]}
19... cxd4 {[%clk 0:01:48.8]} 20. Nxd6 {[%clk 0:01:37.4]} 20... Qxd6 {[%clk
0:01:18.6]} 21. Bxf5 {[%clk 0:01:35.2]} 21... gxf5 {[%clk 0:01:18.4]} 22. Qxf5
{[%clk 0:01:29]} 22... dxc3 {[%clk 0:01:11.4]} 23. bxc3 {[%clk 0:01:28.5]} 23...
e6 {[%clk 0:01:10.4]} 24. Qc2 {[%clk 0:01:17.8]} 24... f5 {[%clk 0:01:08.8]} 25.
Kh1 {[%clk 0:01:11.8]} 25... Rc8 {[%clk 0:01:07.9]} 26. Qb3 {[%clk 0:01:10.6]}
26... Rfe8 {[%clk 0:01:01.3]} 27. Rd1 {[%clk 0:01:08.1]} 27... Qc6 {[%clk
0:00:51.5]} 28. Rd3 {[%clk 0:00:57.2]} 28... Qc4 {[%clk 0:00:45.6]} 29. Qxc4
{[%clk 0:00:47.7]} 29... Rxc4 {[%clk 0:00:46.5]} 30. Rd7 {[%clk 0:00:47.4]}
30... a6 {[%clk 0:00:25.7]} 31. Bf2 {[%clk 0:00:45.9]} 31... b5 {[%clk
0:00:24.7]} 32. Ra7 {[%clk 0:00:37.4]} 32... Rxf4 {[%clk 0:00:15.8]} 33. Rxa6
{[%clk 0:00:20.5]} 33... Bxc3 {[%clk 0:00:15.7]} 34. g3 {[%clk 0:00:19]} 34...
Ra4 {[%clk 0:00:15.8]} 35. Rxa4 {[%clk 0:00:17.9]} 35... bxa4 {[%clk 0:00:16.7]}
36. Rc1 {[%clk 0:00:17]} 36... Bb2 {[%clk 0:00:16.3]} 37. Rc2 {[%clk 0:00:15.1]}
37... a3 {[%clk 0:00:16.6]} 38. Rc7 {[%clk 0:00:14.6]} 38... Rd8 {[%clk
0:00:16.5]} 39. Kg2 {[%clk 0:00:12.4]} 39... Rd2 {[%clk 0:00:16.6]} 40. Kf3
{[%clk 0:00:12.6]} 40... Be5 {[%clk 0:00:15]} 41. Ra7 {[%clk 0:00:10.7]} 41...
Rxf2+ {[%clk 0:00:14.6]} 0-1

[Event "Betsys MČR v online bleskovém šachu 2021"]
[Site "Chess.com"]
[Date "2021.04.17"]
[Round "11"]
[White "zdenav"]
[Black "Simago"]
[Result "0-1"]
[WhiteElo "1853"]
[BlackElo "2105"]
[TimeControl "180+1"]
[EndTime "10:50:13 PDT"]
[Termination "Uživatel Simago zvítězil po vzdání soupeře"]

1. e4 {[%clk 0:03:00.9]} 1... c5 {[%clk 0:02:59.4]} 2. Nf3 {[%clk 0:03:00.8]}
2... g6 {[%clk 0:02:59.3]} 3. Bc4 {[%clk 0:03:00.8]} 3... Bg7 {[%clk 0:02:58.8]}
4. O-O {[%clk 0:03:00.7]} 4... Nc6 {[%clk 0:02:58.2]} 5. d3 {[%clk 0:03:00.7]}
5... e6 {[%clk 0:02:55]} 6. h3 {[%clk 0:03:00.6]} 6... Nge7 {[%clk 0:02:50.9]}
7. a3 {[%clk 0:03:00.3]} 7... O-O {[%clk 0:02:50.7]} 8. Nbd2 {[%clk 0:02:59.3]}
8... d5 {[%clk 0:02:45.9]} 9. exd5 {[%clk 0:02:59.2]} 9... exd5 {[%clk
0:02:45.8]} 10. Ba2 {[%clk 0:02:59.3]} 10... h6 {[%clk 0:02:45]} 11. Re1 {[%clk
0:02:58.9]} 11... Be6 {[%clk 0:02:44.3]} 12. Nf1 {[%clk 0:02:58.3]} 12... Qd7
{[%clk 0:02:44]} 13. Kh2 {[%clk 0:02:56.8]} 13... Rae8 {[%clk 0:02:43.3]} 14.
Ng3 {[%clk 0:02:53.6]} 14... Kh7 {[%clk 0:02:43]} 15. c3 {[%clk 0:02:51.4]}
15... Nf5 {[%clk 0:02:34.2]} 16. Nxf5 {[%clk 0:02:45]} 16... Bxf5 {[%clk
0:02:33.8]} 17. Rxe8 {[%clk 0:02:42.9]} 17... Rxe8 {[%clk 0:02:32.3]} 18. d4
{[%clk 0:02:41.9]} 18... cxd4 {[%clk 0:02:27.5]} 19. cxd4 {[%clk 0:02:40.5]}
19... Qd6+ {[%clk 0:02:25.6]} 20. g3 {[%clk 0:02:39.8]} 20... Be4 {[%clk
0:02:24]} 21. Bf4 {[%clk 0:02:36.6]} 21... Qd7 {[%clk 0:02:18.5]} 22. Ne5 {[%clk
0:02:30.5]} 22... Nxe5 {[%clk 0:02:16.2]} 23. dxe5 {[%clk 0:02:29.6]} 23... Bxe5
{[%clk 0:01:33.6]} 24. Bxe5 {[%clk 0:02:28.8]} 24... Rxe5 {[%clk 0:01:33.8]} 25.
f3 {[%clk 0:02:28.2]} 25... Bf5 {[%clk 0:01:20.1]} 26. g4 {[%clk 0:02:27.9]}
26... Be6 {[%clk 0:01:18.3]} 27. Kg2 {[%clk 0:02:25.7]} 27... Qb5 {[%clk
0:01:15.2]} 28. Qd4 {[%clk 0:02:13.1]} 28... Re2+ {[%clk 0:01:09.4]} 29. Kg3
{[%clk 0:02:12.6]} 29... Qxb2 {[%clk 0:01:05.1]} 30. Qxb2 {[%clk 0:02:07.4]}
30... Rxb2 {[%clk 0:01:06]} 31. h4 {[%clk 0:02:05.7]} 31... b5 {[%clk
0:01:04.2]} 32. Kf4 {[%clk 0:02:01.1]} 32... Kg7 {[%clk 0:01:02.6]} 33. Bb1
{[%clk 0:01:56.3]} 33... Kf6 {[%clk 0:00:46.9]} 34. Bd3 {[%clk 0:01:51.8]} 34...
g5+ {[%clk 0:00:46.4]} 35. hxg5+ {[%clk 0:01:50.8]} 35... hxg5+ {[%clk
0:00:47.3]} 36. Ke3 {[%clk 0:01:50.6]} 36... Ke5 {[%clk 0:00:45.3]} 37. f4+
{[%clk 0:01:25.8]} 37... gxf4+ {[%clk 0:00:43.3]} 38. Kf3 {[%clk 0:01:25.7]}
38... Rb3 {[%clk 0:00:41.3]} 39. Re1+ {[%clk 0:01:22.9]} 39... Kd4 {[%clk
0:00:39.6]} 40. Kxf4 {[%clk 0:01:22.6]} 40... Rxd3 {[%clk 0:00:38.3]} 41. Rb1
{[%clk 0:01:18]} 41... a6 {[%clk 0:00:35.8]} 42. a4 {[%clk 0:01:17.1]} 42... Kc5
{[%clk 0:00:32.4]} 43. axb5 {[%clk 0:01:16.4]} 43... axb5 {[%clk 0:00:32.2]} 44.
g5 {[%clk 0:01:12.6]} 44... b4 {[%clk 0:00:31.5]} 45. Ke5 {[%clk 0:01:11]} 45...
Re3+ {[%clk 0:00:25.2]} 46. Kf6 {[%clk 0:01:10.3]} 46... Rf3+ {[%clk 0:00:25.1]}
47. Ke7 {[%clk 0:01:09.4]} 47... Rg3 {[%clk 0:00:23.7]} 48. Kf6 {[%clk 0:01:08]}
48... Kc4 {[%clk 0:00:22.8]} 49. Rc1+ {[%clk 0:01:06.5]} 49... Rc3 {[%clk
0:00:22.2]} 50. Re1 {[%clk 0:01:04.5]} 50... b3 {[%clk 0:00:21]} 51. g6 {[%clk
0:01:00]} 51... fxg6 {[%clk 0:00:20.8]} 52. Rxe6 {[%clk 0:00:58.4]} 52... b2
{[%clk 0:00:21]} 53. Rb6 {[%clk 0:00:54.7]} 53... Rb3 {[%clk 0:00:20.4]} 54.
Rc6+ {[%clk 0:00:53.3]} 54... Kd3 {[%clk 0:00:19.6]} 55. Rd6 {[%clk 0:00:52.7]}
55... Kd4 {[%clk 0:00:18]} 56. Kxg6 {[%clk 0:00:49.8]} 56... b1=Q+ {[%clk
0:00:17.4]} 57. Kf6 {[%clk 0:00:48.4]} 57... Rf3+ {[%clk 0:00:17.2]} 58. Ke7
{[%clk 0:00:46.7]} 58... Qh7+ {[%clk 0:00:15.9]} 0-1